bitfinex-derivatives/quotes_ETHF0:USTF0_20250804
["timestamp","ask_amount","ask_price","bid_price","bid_amount"]
[1754344722238,0.98433678,3712.3,3712.2,4.62023777]
[1754344722439,0.7855017,3712.3,3712.2,4.62023777]
[1754344722641,3.2078,3712.7,3712.6,0.93917]
[1754344722837,3.2078,3712.7,3712.6,3.48073777]
[1754344722838,4.1055,3712.7,3712.6,3.48073777]
[1754344723038,5.1461,3712.7,3712.6,3.48073777]
[1754344725041,3.5774,3712.7,3712.6,3.48073777]
[1754344725243,3.2078,3712.7,3712.6,3.59163777]
[1754344726044,3.2078,3713.3,3713.2,0.4005]
[1754344726244,3.5774,3713.3,3713.2,1.29098]
[1754344726543,4.1055,3713.3,3713.2,4.01931777]
[1754344727646,0.8977,3713.3,3713.2,4.01931777]
[1754344727853,1.3548,3713.3,3713.2,4.01931777]
[1754344728652,0.8977,3713.3,3713.2,4.01931777]
[1754344728855,0.6098,3713.3,3713.2,4.01931777]
[1754344729245,0.3696,3713.3,3713.2,1.29098]
[1754344729446,0.3696,3713.3,3713.2,4.01931777]
[1754344729648,0.3696,3713.3,3713.2,4.13021777]
[1754344729848,19.1456,3713.6,3713.5,1.29094]
[1754344730044,0.3696,3713.6,3713.5,4.01927777]
[1754344730353,20.1128,3714.0,3713.9,1.29088]
[1754344730548,0.6098,3714.0,3713.9,4.13011777]
[1754344730844,0.6098,3714.3,3714.2,1.29083]
[1754344731048,0.6098,3714.3,3714.2,4.13006777]
[1754344731252,0.3696,3714.3,3714.2,4.01916777]
[1754344731547,3.2078,3714.8,3714.2,4.01916777]
[1754344731548,0.2879,3714.7,3714.2,2.72833777]
[1754344731748,1.5687,3714.7,3714.6,0.2231]
[1754344731944,1.5687,3714.7,3714.6,3.48073777]
[1754344732144,2.10706,3714.7,3714.6,3.48073777]
[1754344732348,2.47666,3714.7,3714.6,3.12883777]
[1754344732548,2.47666,3714.7,3714.6,2.95143777]
[1754344733951,0.90796,3714.7,3714.6,2.95143777]
[1754344734147,1.9383,3714.7,3714.6,2.72833777]
[1754344736854,1.9383,3714.7,3714.6,3.66721777]
[1754344737053,1.9383,3714.7,3714.6,4.01911777]
[1754344737550,1.9383,3714.7,3714.6,3.48073777]
[1754344738356,1.5919,3714.7,3714.6,3.48073777]
[1754344738556,0.3696,3714.7,3714.6,3.48073777]
[1754344739453,0.6098,3714.7,3714.6,3.48073777]
[1754344740056,0.8977,3714.7,3714.6,3.48073777]
[1754344740255,1.5919,3714.7,3714.6,3.48073777]
[1754344740456,1.9383,3714.7,3714.6,3.48073777]
[1754344741458,0.3606,3714.9,3714.8,0.2226]
[1754344741652,1.0,3715.0,3714.9,1.38383]
[1754344741852,1.0,3715.0,3714.9,7.31996777]
[1754344743657,1.0,3715.0,3714.9,7.21646777]
[1754344743859,1.3606,3715.0,3714.9,7.21646777]
[1754344744060,2.876,3715.0,3714.9,6.69706777]
[1754344745063,0.53833,3714.9,3714.5,3.2078]
[1754344745261,1.876,3714.6,3714.5,1.28039]
[1754344745460,1.876,3714.6,3714.5,1.11479]
[1754344745660,1.876,3714.6,3714.5,3.84312777]
[1754344746659,1.876,3714.6,3714.5,3.26672777]
[1754344750859,0.53839,3714.5,3714.3,0.53841]
[1754344751062,1.4553,3714.1,3713.7,0.3538]
[1754344751261,2.0688,3713.8,3713.7,2.72833777]
[1754344751459,0.3606,3714.2,3714.1,0.53844]
[1754344751656,0.601,3714.2,3714.1,0.742]
[1754344751967,0.8869,3714.2,3714.1,3.47033777]
[1754344753464,1.3076,3714.2,3714.1,3.47033777]
[1754344754065,0.8869,3714.2,3714.1,3.47033777]
[1754344755172,1.876,3714.2,3714.1,3.47033777]
[1754344755672,2.66592019,3714.2,3714.1,3.47033777]
[1754344755869,2.50260858,3714.2,3713.5,3.2078]
[1754344756070,1.876,3713.6,3713.5,4.13454]
[1754344756372,2.66592019,3713.6,3713.5,4.48834]
[1754344756571,2.66592019,3713.6,3713.5,7.21667777]
[1754344756772,2.66592019,3713.6,3713.5,3.74634]
[1754344757367,2.66592019,3713.6,3713.1,3.2078]
[1754344757563,0.749,3713.3,3713.2,2.72833777]
[1754344757764,2.66592019,3713.3,3713.2,2.72833777]
[1754344757965,1.6533,3713.2,3713.1,4.32279]
[1754344758164,2.66592019,3713.2,3713.1,7.05112777]
[1754344758365,2.66592019,3713.2,3713.1,7.21672777]
[1754344760776,2.66592019,3713.2,3713.1,6.69732777]
[1754344761177,2.66592019,3713.2,3713.1,7.05112777]
[1754344761378,2.66592019,3713.2,3713.1,3.2078]
[1754344764278,2.66592019,3713.2,3713.1,3.4304]
[1754344764473,2.66592019,3713.2,3713.1,3.9498]
[1754344764678,1.89952019,3713.2,3713.1,6.67813777]
[1754344765070,1.5303,3713.2,3713.1,6.67813777]
[1754344765475,2.66615947,3713.2,3713.1,6.67813777]
[1754344766079,2.66615947,3713.2,3713.1,5.93613777]
[1754344766280,2.66615947,3713.2,3713.1,2.72833777]
[1754344766479,0.749,3712.8,3712.7,3.2078]
[1754344766781,1.876,3712.8,3712.7,3.2078]
[1754344766975,1.876,3712.8,3712.2,4.5546]
[1754344766976,0.749,3712.8,3712.2,4.5546]
[1754344767177,1.876,3712.6,3712.4,0.53869]
[1754344767377,1.876,3712.3,3712.2,3.74652]
[1754344767676,1.876,3712.3,3712.2,0.53872]
[1754344767875,0.749,3711.9,3711.8,3.74658]
[1754344768078,0.749,3711.6,3711.5,0.53882]
[1754344768378,1.876,3711.6,3711.5,0.53882]
[1754344768573,1.876,3711.6,3711.5,3.26715777]
[1754344768977,1.0068,3712.0,3711.9,0.53877]
[1754344769177,0.53872,3712.3,3712.2,0.2226]
[1754344769178,0.5086,3712.3,3712.2,0.2226]
[1754344769475,1.5154,3712.2,3712.1,0.53873]
[1754344769681,1.876,3712.2,3712.1,0.53873]
[1754344773082,1.8752,3712.1,3711.9,0.53876]
[1754344773284,1.8752,3712.1,3712.0,2.72833777]
[1754344773484,0.7476,3712.1,3711.9,0.53876]
[1754344773685,1.5139,3712.0,3711.9,0.53876]
[1754344773985,1.8752,3712.0,3711.9,0.53876]
[1754344775383,1.0853,3711.5,3711.4,2.07323]
[1754344775682,1.8752,3711.5,3711.4,2.07323]
[1754344775882,1.8752,3711.5,3711.4,4.80156777]
[1754344776087,1.8752,3711.5,3711.4,3.26716777]
[1754344776584,1.8752,3711.5,3711.4,2.72833777]
[1754344778885,1.4466,3711.5,3711.4,2.72833777]
[1754344779387,1.8752,3711.5,3711.4,3.68943777]
[1754344779587,1.8752,3711.5,3711.4,4.26273777]
[1754344779984,1.8752,3711.5,3711.4,3.25053777]
[1754344780179,1.8752,3711.5,3711.4,2.72833777]
[1754344780387,1.28643,3711.5,3711.3,0.53885]
[1754344780692,1.8752,3711.4,3711.3,0.53885]
[1754344781793,2.07634,3711.4,3711.3,0.9611]
[1754344782292,2.41404,3711.4,3711.3,0.5222]
[1754344782993,1.8752,3711.2,3711.1,5.28108]
[1754344783492,1.8752,3711.2,3711.1,8.00941777]
[1754344785690,1.0853,3711.5,3711.4,1.71924]
[1754344785898,1.8752,3711.5,3711.4,1.5344]
[1754344786194,1.8752,3711.5,3711.1,3.2078]
[1754344786195,0.53884,3711.4,3711.1,2.8457]
[1754344786398,0.53884,3711.4,3709.4,0.26592304]
[1754344786399,1.34722,3711.1,3709.5,0.3569]
[1754344786594,0.5403,3709.6,3709.5,1.4524]
[1754344786899,3.7481,3709.6,3709.5,1.4524]
[1754344787492,3.7481,3709.6,3709.5,0.3569]
[1754344789200,2.694,3709.5,3705.1,4.471]
[1754344789397,0.53959,3706.3,3705.9,0.97141084]
[1754344789600,3.2078,3706.1,3706.0,4.15534252]
[1754344789798,3.2078,3706.9,3706.4,5.15032789]
[1754344790106,3.2078,3707.4,3706.9,0.7929]
[1754344790399,3.6364,3708.8,3707.4,0.7929]
[1754344790598,0.53925,3708.6,3708.1,0.7929]
[1754344790902,0.53924,3708.7,3708.6,5.15032789]
[1754344791104,0.96784,3708.7,3708.6,0.354]
[1754344791299,0.7663,3708.4,3707.8,0.4389]
[1754344791503,0.87699,3708.3,3708.1,5.15032789]
[1754344791704,0.87699,3708.3,3706.8,3.2078]
[1754344791705,0.5394,3707.6,3707.5,1.1498]
[1754344792003,0.4286,3708.2,3707.7,5.15032789]
[1754344792302,0.4286,3708.1,3708.0,1.1498]
[1754344794402,3.2078,3708.3,3708.2,0.53931]
[1754344794603,3.2078,3708.7,3708.4,0.53928]
[1754344795003,3.2078,3709.1,3708.9,0.7958]
[1754344795199,3.2078,3709.1,3709.0,0.7929]
[1754344795399,3.2078,3709.1,3709.0,6.45477041]
[1754344795598,0.4286,3709.4,3709.1,1.1498]
[1754344795804,0.4286,3709.4,3709.3,1.1498]
[1754344796107,0.80521387,3709.4,3709.3,6.30012789]
[1754344796401,0.80521387,3709.4,3709.3,6.45477041]
[1754344797800,0.44311387,3709.4,3709.3,6.45477041]
[1754344798001,3.2078,3709.9,3709.4,0.53913]
[1754344798203,3.2078,3709.9,3709.8,6.45477041]
[1754344800409,1.91335882,3710.6,3710.5,1.33187]
[1754344800611,2.09169881,3711.0,3710.9,0.3569]
[1754344800813,2.09169881,3711.0,3710.9,1.1498]
[1754344801104,2.33587335,3711.6,3711.5,0.53881]
[1754344801299,3.2078,3711.8,3711.6,0.7109]
[1754344801499,4.27032323,3712.0,3711.8,0.3877]
[1754344801500,1.0,3712.0,3711.8,0.3877]
[1754344801706,1.0,3712.0,3711.9,6.45547789]
[1754344802504,2.33587335,3712.3,3712.2,1.11351]
[1754344802705,2.33587335,3712.3,3712.2,5.15032789]
[1754344803414,0.4407,3711.8,3711.1,0.53887]
[1754344803607,0.3934,3711.6,3711.0,0.4451]
[1754344803909,2.40447738,3712.1,3711.8,0.53877]
[1754344804210,19.659,3713.1,3712.2,0.98381]
[1754344804211,1.93887738,3712.3,3712.2,0.98381]
[1754344804408,3.27032323,3712.8,3712.7,0.53864]
[1754344804612,0.53856,3713.3,3712.9,0.5386]
[1754344804913,0.3934,3714.1,3713.4,5.68885789]
[1754344805111,0.3934,3714.3,3714.0,5.68876789]
[1754344805310,0.3934,3714.3,3713.9,3.2078]
[1754344805311,5.07112917,3714.7,3714.5,5.15032789]
[1754344805612,1.53831,3715.0,3714.6,1.51530055]
[1754344805807,1.93171,3715.0,3714.9,1.51530055]
[1754344806008,2.78711,3715.0,3714.9,1.51530055]
[1754344806314,0.3934,3714.1,3714.0,3.2078]
[1754344806612,0.95314,3714.1,3713.5,3.2078]
[1754344806802,0.95314,3714.1,3713.3,38.799]
[1754344806803,0.5385,3713.7,3713.3,38.799]
[1754344807003,0.95323,3713.5,3713.3,38.799]
[1754344807209,0.8081,3713.4,3713.3,38.799]
[1754344807408,0.3934,3713.4,3713.3,38.799]
[1754344807714,0.3934,3713.7,3713.3,40.85285055]
[1754344807911,0.3934,3713.7,3713.3,39.33755]
[1754344808211,0.53847,3713.9,3713.6,1.51530055]
[1754344808408,0.3934,3713.7,3713.5,3.74631]
[1754344808605,0.4407,3714.7,3714.3,0.5384]
[1754344808807,0.93173,3714.8,3713.2,1.3464]
[1754344808808,0.3934,3714.8,3714.5,0.53836]
[1754344809007,0.3934,3715.2,3714.7,2.05363055]
[1754344809210,0.3934,3715.2,3714.9,1.51530055]
[1754344809810,1.76485914,3715.0,3714.9,1.51530055]
[1754344810510,2.72482425,3715.0,3714.9,1.51530055]
[1754344810815,1.76485914,3715.0,3714.9,1.51530055]
[1754344811111,1.0,3715.0,3714.9,1.51530055]
[1754344811714,1.8081,3715.0,3714.9,1.51530055]
[1754344811915,2.2488,3715.0,3714.9,1.51530055]
[1754344812312,0.53832,3714.9,3714.4,3.2078]
[1754344812513,1.2488,3714.8,3714.4,3.2078]
[1754344812810,1.0,3715.0,3714.4,3.2078]
[1754344812811,0.53835,3714.7,3714.4,3.2078]
[1754344813018,0.8341,3714.5,3714.4,3.74619]
[1754344813212,1.2488,3714.5,3714.4,3.74619]
[1754344813411,1.2488,3714.5,3714.4,1.51530055]
[1754344814514,3.2078,3714.7,3714.0,3.2078]
[1754344814813,1.37249,3714.4,3714.3,1.51530055]
[1754344815010,1.78719,3714.4,3714.3,1.51530055]
[1754344815212,1.2488,3714.1,3713.5,3.2078]
[1754344815412,0.3934,3714.0,3713.5,3.2078]
[1754344815609,0.8554,3713.9,3713.5,3.2078]
[1754344815810,0.3934,3713.7,3713.5,3.2078]
[1754344816013,0.3934,3713.7,3713.6,0.5385]
[1754344816317,0.3934,3713.7,3713.6,2.05380055]
[1754344818114,0.8081,3713.7,3713.6,2.05380055]
[1754344818816,0.8081,3713.7,3713.6,1.51530055]
[1754344819014,1.2488,3713.7,3713.6,1.51530055]
[1754344819412,0.3934,3714.1,3713.9,0.53845]
[1754344819617,3.6225,3714.4,3714.3,1.51530055]
[1754344819821,0.4147,3714.8,3714.7,0.53835]
[1754344820016,3.2078,3714.9,3714.7,0.53835]
[1754344820220,3.2078,3714.9,3714.8,1.51530055]
[1754344820422,3.6012,3714.9,3714.8,1.51530055]
[1754344820622,4.0159,3714.9,3714.8,1.51530055]
[1754344820816,4.4566,3714.9,3714.8,1.51530055]
[1754344821624,4.0159,3714.9,3714.8,1.51530055]
[1754344822825,0.4407,3715.3,3714.8,1.51530055]
[1754344822826,0.4407,3715.3,3714.9,0.53832]
[1754344823027,0.8081,3715.4,3714.9,2.05362055]
[1754344823227,3.2078,3715.5,3714.9,2.05362055]
[1754344824324,0.3934,3716.0,3715.4,2.05355055]
[1754344824529,0.3934,3716.0,3715.9,3.2078]
[1754344824731,0.3934,3716.8,3716.7,0.53806]
[1754344824931,0.3934,3716.8,3716.7,3.74586]
[1754344825125,0.3934,3716.8,3716.7,5.26116055]
[1754344825326,0.53793,3717.7,3716.7,5.26116055]
[1754344825327,0.4407,3717.5,3717.4,0.53796]
[1754344825527,3.2078,3718.1,3717.8,0.53789]
[1754344825833,0.53784,3718.3,3717.9,1.51530055]
[1754344826229,1.8554,3718.0,3717.9,1.51530055]
[1754344827027,1.4147,3718.0,3717.9,1.51530055]
[1754344827431,0.3934,3717.9,3717.8,3.2078]
[1754344827732,1.2488,3717.9,3717.8,3.2078]
[1754344829234,0.53795,3717.5,3717.2,3.2078]
[1754344829433,1.78677,3717.3,3717.2,3.2078]
[1754344830034,1.2488,3717.7,3716.8,0.4451]
[1754344830332,0.538,3717.1,3716.8,1.51530055]
[1754344830530,0.53803,3716.9,3716.7,3.2078]
[1754344830835,1.3448,3717.7,3716.4,19.542]
[1754344830836,0.4147,3716.6,3716.4,19.542]
[1754344831035,1.2488,3716.5,3716.2,3.2078]
[1754344831331,3.2078,3717.0,3716.2,3.2078]
[1754344831332,0.8341,3716.3,3716.2,3.2078]
[1754344831726,0.4499,3716.2,3715.6,3.2078]
[1754344831934,0.4309,3716.1,3715.1,0.53829]
[1754344832131,0.53821,3715.7,3715.1,2.05359055]
[1754344832332,0.8822,3715.5,3715.1,0.53829]
[1754344832636,1.3131,3715.4,3715.0,3.7461]
[1754344832837,1.3131,3715.4,3715.1,1.51530055]
[1754344833033,0.53823,3715.5,3715.2,0.53827]
[1754344833232,0.53823,3715.5,3715.1,0.53828]
[1754344833533,0.53822,3715.6,3715.1,0.53828]
[1754344833728,1.4204,3715.7,3715.3,0.53826]
[1754344833931,0.8822,3715.5,3715.3,0.53826]
[1754344834231,1.3131,3715.4,3715.3,0.53826]
[1754344835135,1.3131,3715.3,3715.2,0.53828]
[1754344835730,0.53824,3715.6,3715.0,3.2078]
[1754344835929,0.17863193,3716.1,3715.0,3.2078]
[1754344835930,0.53823,3715.7,3715.3,0.53828]
[1754344836135,0.8822,3715.5,3715.3,0.53828]
[1754344836333,0.53823,3715.7,3715.3,0.53828]
[1754344836534,1.3131,3715.4,3715.3,0.53828]
[1754344837239,0.75411021,3715.4,3715.3,2.91478055]
[1754344837434,0.75411021,3715.4,3715.3,3.35868055]
[1754344838840,0.4309,3715.9,3715.8,0.53821]
[1754344839042,2.06216,3715.9,3715.8,0.53821]
[1754344841348,0.74906,3715.9,3715.8,1.84331]
[1754344841543,2.06216,3715.9,3715.8,0.53821]
[1754344841743,1.17996,3715.9,3715.8,3.35861055]
[1754344841939,0.74906,3715.9,3715.8,3.35861055]
[1754344842548,0.95988388,3716.2,3716.1,0.53815]
[1754344842848,6.00976777,3716.8,3716.3,2.05342055]
[1754344842849,0.95988388,3716.5,3716.3,2.05342055]
[1754344843050,0.95988388,3716.5,3716.4,1.3051]
[1754344843247,0.95988388,3716.6,3716.5,0.53809]
[1754344843448,0.95988388,3716.6,3716.5,1.84319]
[1754344843649,0.95988388,3716.6,3716.5,3.35849055]
[1754344843840,1.39078388,3716.9,3716.7,0.53806]
[1754344844043,0.95988388,3716.9,3716.8,1.95920055]
[1754344844239,1.3131,3717.0,3716.9,0.53803]
[1754344844444,1.3131,3717.0,3716.5,0.8888]
[1754344844645,0.8822,3716.9,3716.8,0.53804]
[1754344845145,1.3131,3716.9,3716.8,0.53804]
[1754344845545,1.3131,3716.7,3716.2,3.2078]
[1754344845746,3.38661954,3717.0,3716.2,3.2078]
[1754344846043,0.53811,3716.4,3716.2,3.2078]
[1754344846242,0.53813,3716.2,3715.9,0.53817]
[1754344846442,0.53822,3715.7,3715.5,3.2078]
[1754344846647,1.3131,3715.6,3715.5,3.2078]
[1754344846849,0.53823,3715.6,3715.1,3.2078]
[1754344847048,0.4499,3715.4,3715.2,1.51530055]
[1754344847351,1.3131,3715.3,3715.2,2.05358055]
[1754344847752,1.3131,3715.2,3715.1,3.74609]
[1754344848248,1.3131,3715.6,3715.4,0.53824]
[1754344848550,1.3131,3715.5,3715.4,0.53824]
[1754344849047,0.4499,3715.6,3715.3,0.53826]
[1754344849245,1.49810388,3715.7,3715.2,1.51530055]
[1754344849246,0.95988388,3715.7,3715.2,1.51530055]
[1754344849549,1.3131,3715.3,3715.1,4.72310055]
[1754344849750,1.3131,3715.2,3715.1,4.72310055]
[1754344851152,1.3131,3715.2,3715.1,5.61190055]
[1754344851754,0.4309,3715.2,3715.1,6.02820055]
[1754344853857,1.3131,3715.6,3715.5,0.53823]
[1754344854154,1.3131,3715.6,3715.4,0.53824]
[1754344854354,1.3131,3715.7,3715.4,0.53824]
[1754344854556,1.27141387,3715.6,3715.4,0.53824]
[1754344854755,2.04629387,3715.5,3715.4,0.53824]
[1754344855057,0.4309,3715.4,3715.3,0.8888]
[1754344855251,2.04629387,3715.4,3715.3,2.40410055]
[1754344855554,2.04629387,3715.4,3715.3,1.51530055]
[1754344856156,1.3131,3715.4,3715.3,1.51530055]
[1754344856454,1.3131,3715.4,3715.3,2.40410055]
[1754344857750,1.3131,3715.4,3715.3,1.51530055]
[1754344858856,2.1863,3715.4,3715.3,1.80130055]
[1754344859454,0.53832,3715.0,3714.8,0.53833]
[1754344859655,1.3131,3714.8,3714.7,3.2078]
[1754344860055,0.53841,3714.3,3714.2,3.2078]
[1754344860256,1.07,3713.5,3713.3,0.95484]
[1754344860452,1.07,3713.4,3713.2,4.72310055]
[1754344860662,1.07,3713.3,3713.2,5.26166055]
[1754344860861,0.4323,3713.6,3713.4,0.53854]
[1754344861056,0.4309,3713.6,3713.5,1.3051]
[1754344861258,0.4309,3714.3,3714.1,1.84353]
[1754344861459,0.73537282,3714.2,3714.1,2.05373055]
[1754344861662,0.73537282,3714.2,3714.1,0.53843]
[1754344861857,3.2078,3714.6,3714.5,0.53838]
[1754344862162,3.9430983,3714.6,3714.5,1.3703]
[1754344862552,4.3825983,3714.6,3714.5,1.3703]
[1754344862757,4.5894983,3714.6,3714.5,1.3703]
[1754344863165,0.8977,3714.9,3714.8,0.53834]
[1754344863461,0.73465109,3714.9,3714.8,3.42394055]
[1754344863657,0.17972986,3715.4,3715.3,0.53826]
[1754344863860,0.53826,3715.3,3715.2,1.51530055]
[1754344864066,1.1046,3715.3,3715.2,1.51530055]
[1754344864266,0.53823,3715.6,3715.3,0.53826]
[1754344864565,0.8977,3715.3,3715.2,1.51530055]
[1754344864868,1.64287,3715.3,3715.2,1.51530055]
[1754344865067,0.53827,3715.3,3715.0,0.5383]
[1754344865268,0.53827,3715.3,3715.2,1.51530055]
[1754344865670,0.53827,3715.3,3715.0,0.5383]
[1754344865969,1.1046,3715.1,3715.0,0.5383]
[1754344866469,1.1046,3715.0,3714.9,0.53832]
[1754344866664,1.1046,3715.0,3714.9,2.05362055]
[1754344866865,1.1046,3715.0,3714.9,0.53832]
[1754344867067,0.6651,3714.5,3714.2,2.25361]
[1754344867269,1.1046,3714.3,3714.2,1.7152]
[1754344867469,4.3124,3714.3,3714.2,1.7152]
[1754344867663,1.1046,3713.7,3713.6,0.5385]
[1754344867864,1.1046,3713.7,3713.6,1.51530055]
[1754344868071,3.2078,3714.3,3713.6,1.51530055]
[1754344868072,3.2078,3714.3,3714.2,1.3703]
[1754344868272,0.4395,3714.6,3714.3,0.9113]
[1754344868474,0.4395,3714.6,3714.4,1.51530055]
[1754344868673,0.4395,3714.6,3714.5,1.3703]
[1754344869068,0.2069,3714.9,3714.7,1.3703]
[1754344869069,1.18473,3714.9,3714.7,1.3703]
[1754344869265,1.18473,3714.9,3714.8,0.9162]
[1754344869472,1.64293,3714.9,3714.8,0.9162]
[1754344869772,0.4395,3715.6,3715.2,0.53827]
[1754344869973,0.4395,3715.6,3714.7,1.34587]
[1754344869974,1.1046,3715.6,3715.4,1.96940055]
[1754344870276,1.64282,3715.6,3715.5,1.3703]
[1754344870470,1.1046,3715.6,3715.5,1.3703]
[1754344870779,1.1046,3715.6,3715.5,1.90853]
[1754344871076,1.1046,3715.6,3715.5,1.45443]
[1754344871373,1.1046,3715.6,3715.5,0.459]
[1754344871574,3.74601,3715.7,3715.3,0.53825]
[1754344871575,1.1046,3715.4,3715.3,0.53825]
[1754344871774,1.64286,3715.3,3715.2,1.8841]
[1754344872879,4.85066,3715.3,3715.2,1.8841]
[1754344873280,4.85066,3715.3,3715.2,1.6771]
[1754344873476,0.8977,3715.2,3714.5,0.53837]
[1754344873677,0.8977,3715.2,3714.4,1.51530055]
[1754344873874,3.666,3715.3,3715.1,0.53829]
[1754344874177,0.4395,3715.2,3715.1,1.90859]
[1754344874674,0.53825,3715.4,3715.2,0.53826]
[1754344874977,0.4395,3715.3,3715.2,1.90856]
[1754344875375,0.17979628,3715.6,3715.4,0.53825]
[1754344875576,3.2078,3715.7,3715.6,0.53822]
[1754344875783,3.2078,3715.7,3715.6,1.90852]
[1754344876679,3.2078,3715.7,3715.6,3.42382055]
[1754344877287,0.4395,3716.1,3715.9,0.53817]
[1754344877585,0.17989178,3716.0,3715.9,2.05347055]
[1754344877788,0.17989178,3716.0,3715.9,0.53817]
[1754344877987,0.17989178,3716.0,3715.9,1.90847]
[1754344878489,3.2078,3716.2,3715.9,1.90847]
[1754344878490,3.2078,3716.2,3716.1,0.53815]
[1754344878782,3.2078,3716.2,3716.1,3.42375055]
[1754344878783,0.73547685,3716.2,3716.1,3.42375055]
[1754344878984,0.8977,3716.6,3716.4,1.4543]
[1754344879184,0.17985228,3716.5,3716.4,3.42370055]
[1754344880080,0.17985228,3716.5,3715.7,3.2078]
[1754344880081,0.53819,3715.8,3715.7,3.2078]
[1754344880383,0.53819,3715.8,3714.2,3.6668]
[1754344880384,0.53825,3715.4,3714.2,3.6668]
[1754344880586,3.74605,3715.4,3715.3,0.59901]
[1754344880788,0.53841,3714.3,3714.2,0.459]
[1754344881082,0.53841,3714.3,3714.2,0.9131]
[1754344881683,0.5384,3714.4,3714.2,0.99741]
[1754344881889,3.2078,3714.5,3714.4,1.3703]
[1754344882284,0.53835,3714.8,3714.5,1.90868]
[1754344882483,0.53835,3714.8,3714.6,0.4541]
[1754344882685,3.2078,3714.9,3714.7,1.3703]
[1754344882880,3.2078,3714.9,3714.8,1.3703]
[1754344883085,3.74612,3714.9,3714.8,1.3703]
[1754344883586,3.74612,3714.9,3714.8,0.9131]
[1754344884090,3.2078,3714.9,3714.8,0.9131]
[1754344884284,3.92610171,3714.9,3714.8,1.3703]
[1754344885485,3.38778171,3714.9,3714.8,1.90864]
[1754344886490,3.2078,3714.9,3714.8,1.90864]
[1754344886987,0.53821,3715.7,3715.4,0.53825]
[1754344887186,3.2078,3715.5,3715.4,1.3703]
[1754344887392,3.38779985,3715.5,3715.4,1.3703]
[1754344887590,0.17999985,3715.5,3715.4,1.3703]
[1754344887992,0.17999938,3715.5,3715.4,1.3703]
[1754344888292,0.17999938,3715.5,3715.4,1.90855]
[1754344890996,0.53816,3716.1,3715.9,1.3703]
[1754344891190,0.9802482,3716.0,3715.6,0.53821]
[1754344891390,0.4420782,3715.9,3715.6,0.53821]
[1754344891585,0.91556046,3715.8,3715.7,0.87]
[1754344891792,0.18014366,3715.8,3715.7,1.3404]
[1754344892595,0.53816,3716.1,3715.3,3.2078]
[1754344892596,0.18014366,3716.0,3715.9,1.3404]
[1754344892896,0.99886,3716.1,3716.0,0.915]
[1754344893097,1.1739106,3716.1,3716.0,0.915]
[1754344893298,0.99886,3716.1,3716.0,0.915]
[1754344894393,0.9511,3716.1,3715.4,1.45324]
[1754344894593,0.99299,3715.1,3715.0,0.4446]
[1754344894792,0.99905,3714.8,3714.5,2.7545]
[1754344894991,0.4964,3714.6,3714.5,3.33787]
[1754344895190,0.9511,3714.6,3714.3,0.5384]
[1754344895391,0.4964,3714.5,3714.4,0.53839]
[1754344895593,0.4964,3714.5,3714.4,1.45339]
[1754344895997,0.4607,3714.5,3714.4,1.45339]
[1754344897093,0.4964,3714.5,3714.4,1.45339]
[1754344897294,0.4547,3714.5,3714.3,0.5384]
[1754344897500,0.4964,3714.4,3714.3,0.5384]
[1754344898002,0.4964,3714.4,3714.3,1.4534]
[1754344898499,0.4964,3714.4,3714.3,0.915]
[1754344901611,0.4964,3714.4,3714.3,1.3404]
[1754344901907,0.4607,3714.4,3714.3,1.3404]
[1754344902101,3.6685,3714.6,3714.4,1.4534]
[1754344902307,3.6685,3714.6,3714.5,1.3404]
[1754344902911,3.6981,3715.4,3714.6,1.34593]
[1754344903109,3.6981,3715.4,3715.3,0.53827]
[1754344903311,3.6685,3715.4,3715.3,1.45327]
[1754344903510,3.6685,3715.4,3715.3,1.87867]
[1754344903713,3.84359231,3715.4,3715.3,1.87867]
[1754344904515,3.38289231,3715.4,3715.3,1.87867]
[1754344905114,3.38289231,3715.4,3715.3,3.60107]
[1754344905506,0.17509231,3715.4,3715.3,3.60107]
[1754344905912,0.17509231,3715.8,3715.7,0.53821]
[1754344906116,0.17509231,3715.8,3715.7,1.87861]
[1754344906910,0.90950972,3715.9,3715.8,0.4254]
[1754344907108,0.17509231,3715.9,3715.5,1.34559]
[1754344907313,0.4607,3716.0,3715.9,0.53818]
[1754344907610,0.63579231,3716.0,3715.9,0.53818]
[1754344907810,0.63579231,3716.0,3715.9,1.45318]
[1754344908208,0.17509231,3716.0,3715.9,1.87858]
[1754344908608,0.23740575,3716.7,3716.6,1.87848]
[1754344909008,3.2078,3716.8,3716.6,1.87848]
[1754344909214,3.2078,3716.8,3716.7,1.3404]
[1754344910015,3.6685,3716.8,3716.7,1.3404]
[1754344916016,4.2618,3716.8,3716.6,0.53808]
[1754344916217,0.5933,3716.3,3716.0,0.53816]
[1754344916421,0.5933,3716.3,3715.9,0.915]
[1754344916422,1.5857,3716.0,3715.9,2.06477]
[1754344916923,0.53819,3715.9,3715.7,0.5382]
[1754344917122,0.945,3715.8,3715.7,0.5382]
[1754344917821,0.945,3715.8,3715.6,1.45321]
[1754344918022,0.53821,3715.7,3715.5,0.53822]
[1754344918216,0.945,3715.6,3715.5,0.53822]
[1754344918613,3.6981,3716.0,3715.9,0.53818]
[1754344918817,3.6981,3716.0,3715.9,0.915]
[1754344919725,3.2078,3716.0,3715.9,1.3404]
[1754344919928,0.4607,3716.3,3716.0,1.3404]
[1754344920126,0.4607,3716.2,3716.1,0.915]
[1754344920424,0.4903,3716.2,3716.1,0.915]
[1754344920626,1.02844,3716.2,3716.1,0.915]
[1754344920927,0.945,3715.9,3715.8,0.53818]
[1754344921118,0.4547,3715.7,3715.5,0.915]
[1754344921318,0.4903,3715.6,3715.5,1.45323]
[1754344921922,0.4903,3715.6,3715.5,1.91473]
[1754344922122,0.4607,3715.6,3715.5,1.91473]